[Event "12th WLC Weekend 2022"]
[Site "Eindhoven"]
[Date "2022.05.14"]
[Round "2.26"]
[White "Klapwijk, Leo"]
[Black "Krueger, Andre"]
[Result "1/2-1/2"]
[ECO "B23"]
[WhiteElo "1828"]
[BlackElo "1970"]
[Annotator "TA"]
[PlyCount "116"]
[EventDate "2022.05.13"]
[EventType "swiss"]
[EventCountry "NED"]
[SourceTitle "playchess.com"]
[Source "ChessBase"]
[SourceQuality "1"]
[TimeControl "5400+30"]

{[%evp 9,116,-9,-10,-10,-12,-87,-95,-98,-89,-76,-96,-89,-91,-87,-67,-68,-66,-65,-36,-33,-34,-60,-42,-41,-29,-65,-29,-31,-10,-27,-10,-25,-26,-24,0,-48,-29,-44,-22,-26,-29,-45,-44,-40,-20,-22,-7,-27,0,-28,0,-7,0,0,0,0,0,0,30,8,8,8,7,8,8,16,11,13,27,13,18,0,0,0,0,0,40,2,11,0,0,0,0,0,0,0,0,0,0,-135,0,0,0,0,0,0,29967,0,0,0,0,0,0,0,0,0,0,0,0]} 1. e4 {[%emt 0:00:08]} c5 {[%emt 0:00:05]} 2. Nc3 {[%emt 0:00:13]} e6 {[%emt 0:00:11]} 3. f4 {[%emt 0:00:47]} a6 {[%emt 0:00:39]} 4. Nf3 {[%emt 0:00:21]} d5 {[%emt 0:01:24]} 5. e5 {[%emt 0:03:22]} Nc6 {[%emt 0:01:44]} 6. d4 {[%emt 0:02:29] B23: Closed Sicilian: Lines without g3.} Nh6 {[%emt 0:01:58]} 7. Be3 {[%emt 0:01:10]} (7. Ne2 $11) 7... Nf5 $17 {[%emt 0:02:10]} 8. Bf2 {[%emt 0:00:28] Black is better.} cxd4 {[%emt 0:02:39]} (8... Nfxd4 {is interesting.} 9. Nxd4 Nxd4 10. Bxd4 cxd4 11. Qxd4 Bd7) 9. Nxd4 {[%emt 0:01:24]} Nfxd4 {[%emt 0:00:55]} 10. Bxd4 {[%emt 0:00:28] [#]} Nxd4 $146 {[%emt 0:01:26]} ({Predecessor:} 10... Bd7 11. Ne2 Rc8 12. Bf2 Be7 13. c3 f6 14. exf6 Bxf6 15. g3 O-O 16. Bg2 Ne7 {1-0 (42) Domenech Plana,J (2016)-Garcia Taberner,L Girona 2003}) 11. Qxd4 {[%emt 0:00:10]} Qc7 {[%emt 0:11:17]} 12. Qa4+ {[%emt 0:10:46]} Bd7 {[%emt 0:00:00]} 13. Bb5 {[%emt 0:00:46]} Rc8 {[%emt 0:00:00]} (13... Bxb5 $2 14. Nxb5 Qc6 15. Nc7+ Kd7 16. Qxc6+ (16. Nxa8 Bc5 $18) 16... Kxc6 17. Nxa8 $18) 14. Bxd7+ {[%emt 0:01:20]} Qxd7 {[%emt 0:00:00]} 15. Qxd7+ {[%emt 0:01:10]} Kxd7 {[%emt 0:00:00]} 16. O-O-O {[%emt 0:01:03]} Rc4 {[%emt 0:02:11]} 17. Ne2 {[%emt 0:05:04]} Bc5 {[%emt 0:03:34]} (17... Re4 $5 {[%cal Re4e2]} 18. Rde1 Rg8 $15) 18. Rd3 {[%emt 0:00:20]} Rc8 {[%emt 0:03:32]} 19. Rf1 {[%emt 0:04:43]} Ke7 {[%emt 0:10:26]} 20. Kd1 {[%emt 0:01:36]} Ba7 {[%emt 0:01:00]} 21. c3 {[%emt 0:01:23]} g6 {[%emt 0:09:58]} 22. Rff3 {[%emt 0:01:27]} (22. b3 $11 R4c5 23. g4) 22... h5 {[%emt 0:00:46]} 23. Kd2 {[%emt 0:01:13]} Rd8 {[%emt 0:03:24]} (23... Re4 {is interesting.} 24. h4 Rec4 25. Nd4 b5) 24. b3 {[%emt 0:03:30]} Rcc8 {[%emt 0:04:19]} 25. h3 {[%emt 0:01:05]} h4 {[%emt 0:02:41]} 26. Nd4 {[%emt 0:02:36]} Bxd4 {[%emt 0:00:11]} (26... b5 {with more complications.} 27. Rf1 Rc7 28. Nf3 Rh8) 27. Rxd4 $15 {[%emt 0:00:08][%mdl 4096] Endgame KRR-KRR} Rh8 {[%emt 0:00:25]} 28. Rb4 {[%emt 0:03:22]} Rc7 {[%emt 0:00:31]} 29. Rd3 {[%emt 0:02:07]} Rh5 {[%emt 0:04:00]} 30. Re3 {[%emt 0:04:43]} g5 {[%emt 0:12:11]} 31. Kd3 {[%emt 0:01:07]} gxf4 {[%emt 0:09:06]} 32. Rxf4 {[%emt 0:00:14]} Rc8 {[%emt 0:03:04]} 33. Rg4 {[%emt 0:01:38]} Rf5 {[%emt 0:03:52]} 34. Re2 {[%emt 0:01:53]} Rh8 {[%emt 0:00:12]} 35. Rb4 {[%emt 0:01:46]} b5 {[%emt 0:00:26]} 36. a4 {[%emt 0:00:18]} Rhh5 {[%emt 0:00:48]} 37. axb5 {[%emt 0:00:58]} axb5 {[%emt 0:00:05]} 38. Kd4 {[%emt 0:03:15]} Rf4+ {[%emt 0:00:06]} 39. Kc5 {[%emt 0:00:12]} Rff5 {[%emt 0:00:11]} ({Much less strong is} 39... Rxb4 40. Kxb4 Rh8 41. Kxb5 $14) 40. Kxb5 {[%emt 0:01:24]} (40. Rxb5 {keeps more tension.} Rxe5 41. Rb7+ Kf6 42. Rc2) 40... Rxe5 {[%emt 0:00:06]} 41. Rxe5 {[%emt 0:01:26]} Rxe5 {[%emt 0:00:01]} 42. Rxh4 $11 {[%emt 0:01:06] KR-KR} Kd6 {[%emt 0:02:01]} 43. Rh7 {[%emt 0:02:55]} f5 {[%emt 0:01:00]} 44. b4 {[%emt 0:00:51]} Re3 {[%emt 0:01:32]} 45. c4 {[%emt 0:00:35]} dxc4 {[%emt 0:00:09]} 46. Kxc4 {[%emt 0:00:19]} Rg3 {[%emt 0:00:03]} 47. b5 {[%emt 0:01:37]} Rxg2 {[%emt 0:00:11]} 48. h4 {[%emt 0:00:58]} Rg4+ {[%emt 0:00:25]} 49. Kd3 {[%emt 0:00:53]} (49. Kc3 $11) 49... Kc5 {[%emt 0:00:26]} (49... Rb4 $17 50. h5 Rxb5) 50. h5 {[%emt 0:01:24]} e5 {[%emt 0:01:12]} 51. h6 {[%emt 0:00:45]} Rg3+ {[%emt 0:01:41]} 52. Ke2 {[%emt 0:00:15] Hoping for Rh8.} Kxb5 $2 {[%emt 0:01:29][%mdl 8192] [#]} (52... Kb6 $11) 53. Re7 $2 {[%emt 0:01:34]} (53. Rh8 $1 {mates} Rg2+ 54. Kf3 Rh2 55. h7 Kc6 56. Rc8+ Kd6 57. h8=Q Rxh8 58. Rxh8) 53... Rh3 {[%emt 0:01:00] The position is equal.} 54. Rxe5+ {[%emt 0:00:48]} Kc4 {[%emt 0:00:11]} 55. Re6 {[%emt 0:01:23]} Kd5 {[%emt 0:00:09]} 56. Rg6 {[%emt 0:00:24]} Ke5 {[%emt 0:00:37]} 57. Kf2 {[%emt 0:00:31]} f4 {[%emt 0:00:51]} 58. Kg2 {[%emt 0:01:10]} Kf5 {[%emt 0:00:55] Weighted Error Value: White=0.37/Black=0.27 (precise)} 1/2-1/2

[Event "12th WLC Weekend 2022"]
[Site "Eindhoven"]
[Date "2022.05.14"]
[Round "2.27"]
[White "Van Zon, Paul"]
[Black "Lind, Jacco"]
[Result "0-1"]
[ECO "D15"]
[WhiteElo "2000"]
[BlackElo "1801"]
[Annotator "TA"]
[PlyCount "70"]
[EventDate "2022.05.13"]
[EventType "swiss"]
[EventCountry "NED"]
[SourceTitle "playchess.com"]
[Source "ChessBase"]
[SourceQuality "1"]
[TimeControl "5400+30"]

{[%evp 10,70,33,18,26,18,40,33,35,38,38,14,50,6,8,-43,-26,-104,-107,-105,-102,-111,-112,-108,-119,-104,-89,-102,-116,-129,-147,-159,-159,-159,-156,-152,-152,-241,-84,-80,-72,-150,-136,-137,-138,-570,-563,-556,-550,-600,-593,-566,-550,-924,-877,-884,-908,-912,-885,-1324,-1272,-1931,-1679]} 1. d4 {[%emt 0:00:01]} d5 {[%emt 0:00:06]} 2. c4 {[%emt 0:00:06]} c6 {[%emt 0:00:05]} 3. Nc3 {[%emt 0:00:07]} Nf6 {[%emt 0:00:08]} 4. Nf3 {[%emt 0:00:05]} a6 {[%emt 0:00:06]} 5. e3 {[%emt 0:06:12]} Bf5 {[%emt 0:00:09]} 6. Qb3 {[%emt 0:01:03]} Ra7 {[%emt 0:02:51] D15: Slav Defence: 4 Nc3 a6 and gambit lines after 4 Nc3 dxc4.} 7. c5 {[%emt 0:02:07] [#]} g6 $146 {[%emt 0:01:36]} (7... h6 {looks sharper.} 8. Ne5 Nbd7 9. Bd3 e6) ({Predecessor:} 7... Nbd7 8. Nh4 Be4 9. f4 e6 10. Nf3 Bg6 11. Be2 Be7 12. O-O O-O 13. Bd2 Ne4 14. Na4 {0-1 (67) Sanchez Alvares,K (2250)-Le,T (2514) Chess.com INT 2021}) 8. Be2 {[%emt 0:02:09]} Bg7 {[%emt 0:00:54] White is slightly better.} 9. O-O {[%emt 0:00:09]} O-O {[%emt 0:01:06]} 10. Bd2 {[%emt 0:03:38]} Re8 {[%emt 0:02:14]} 11. a4 {[%emt 0:08:22]} a5 {[%emt 0:03:21]} 12. Qa3 {[%emt 0:09:11]} (12. Nh4 $11) 12... Ne4 {[%emt 0:02:09]} 13. b4 {[%emt 0:01:36]} (13. Be1 $11) 13... Nxd2 $17 {[%emt 0:01:34]} 14. Nxd2 {[%emt 0:00:05]} e5 {[%emt 0:00:13]} 15. Nf3 {[%emt 0:07:36]} exd4 {[%emt 0:02:56]} 16. Nxd4 {[%emt 0:01:29]} axb4 {[%emt 0:03:05]} 17. Qxb4 {[%emt 0:00:07]} Qa5 {[%emt 0:00:43]} 18. Qxa5 {[%emt 0:13:50]} Rxa5 {[%emt 0:00:14]} 19. Nxf5 {[%emt 0:00:07]} gxf5 {[%emt 0:00:11][%cal Bg6f5,Bf5f4,Bf4e3][%mdl 32]} 20. Rfc1 {[%emt 0:05:20]} f4 {[%emt 0:03:01]} 21. Rab1 {[%emt 0:05:39]} fxe3 {[%emt 0:03:13]} 22. Rxb7 {[%emt 0:05:22]} Bd4 {[%emt 0:05:29]} ({And not} 22... Rxc5 23. Na2 exf2+ 24. Kxf2 $17) 23. f4 {[%emt 0:02:23]} (23. Kf1 $17 {was necessary.}) 23... Rxc5 $2 {[%emt 0:01:08]} (23... Na6 $1 $19 {aiming for ...Bxc3.} 24. Rb6 Bxc5 $1 25. Rxc6 (25. Rxa6 $2 Rxa6 26. Kf1 Ra5 $19) 25... Nb4) 24. Na2 {[%emt 0:01:20]} Na6 {[%emt 0:02:57] Hoping for ...Ra5.} 25. g3 {[%emt 0:04:36]} ({Don't go for} 25. Rd1 $2 Rc2 26. Nc1 Nc5 $19) (25. Kf1 $142 Ra8 26. Bd1) 25... Rxc1+ {[%emt 0:02:28]} 26. Nxc1 {[%emt 0:00:05]} Nc5 {[%emt 0:00:03][%csl LRa4,LRb7]} 27. Rc7 {[%emt 0:02:12][%mdl 8192] [#] White does not recover from this.} (27. Rb6 $17 {is tougher.}) 27... Rb8 $1 $19 {[%emt 0:00:28] Black is clearly winning.} 28. Kg2 {[%emt 0:00:26]} Rb1 {[%emt 0:00:34]} 29. Nd3 {[%emt 0:01:07]} Nxd3 {[%emt 0:00:35]} 30. Bxd3 {[%emt 0:00:11][%mdl 4096] Endgame KRB-KRB} Rb2+ {[%emt 0:00:05]} 31. Kf3 {[%emt 0:00:12]} Rf2+ {[%emt 0:00:22]} 32. Kg4 {[%emt 0:00:21]} Rd2 {[%emt 0:06:48]} 33. Ba6 {[%emt 0:00:13]} c5 {[%emt 0:00:11][%cal Bc6c5,Bc5c4][%mdl 32] Threatens to win with ...c4.} ({Weaker is} 33... e2 34. Re7 $15) 34. Rd7 {[%emt 0:03:03]} c4 {[%emt 0:01:32] Strongly threatening ...e2.} 35. Rxd5 {[%emt 0:00:51]} e2 {[%emt 0:00:37] Weighted Error Value: White=0.88/Black=0.07 (flawless)} 0-1

[Event "12th WLC Weekend 2022"]
[Site "Eindhoven"]
[Date "2022.05.14"]
[Round "2.28"]
[White "Plasmans, Bart"]
[Black "De Vries, Leon"]
[Result "1-0"]
[ECO "C02"]
[WhiteElo "1775"]
[BlackElo "1951"]
[Annotator "TA"]
[PlyCount "71"]
[EventDate "2022.05.13"]
[EventType "swiss"]
[EventCountry "NED"]
[SourceTitle "playchess.com"]
[Source "ChessBase"]
[SourceQuality "1"]
[TimeControl "5400+30"]

{[%evp 10,71,8,-11,-11,-16,3,0,-1,-24,-1,-48,-41,-70,-57,-62,-61,-46,-45,-35,-48,-31,-35,-40,-14,-62,-36,-58,22,-89,-86,-76,-84,-95,-92,-91,-42,-38,-44,-46,-26,-29,-27,-22,-8,-16,517,36,31,31,37,37,328,319,318,298,471,386,386,392,427,401,506,528]} 1. e4 {[%emt 0:00:03][%cal Be2e4,Be4e5][%mdl 32]} e6 {[%emt 0:00:12]} 2. d4 {[%emt 0:00:04]} d5 {[%emt 0:00:07]} 3. e5 {[%emt 0:00:07]} c5 {[%emt 0:00:16]} 4. c3 {[%emt 0:00:10]} Nc6 {[%emt 0:00:10]} 5. Nf3 {[%emt 0:00:45]} Nge7 {[%emt 0:00:40]} 6. dxc5 {[%emt 0:01:12]} Ng6 {[%emt 0:00:14][%csl LRc5,LRe5] C02: French: Advance Variation.} 7. Be3 {[%emt 0:03:29]} Ngxe5 {[%emt 0:02:10]} 8. Nxe5 {[%emt 0:02:27]} Nxe5 {[%emt 0:00:11] The position is equal.} 9. Nd2 {[%emt 0:00:14][%cal Bb1d2,Bd2b3,Bb3d4][%mdl 32]} Be7 {[%emt 0:07:03]} 10. Be2 {[%emt 0:03:06]} (10. f4 $11 Nd7 11. Bb5) 10... Qc7 $15 {[%emt 0:04:05]} 11. b4 {[%emt 0:03:53]} O-O {[%emt 0:01:11]} 12. O-O {[%emt 0:02:24] [#]} b6 $146 {[%emt 0:03:08][%cal Rb6c5]} ({Predecessor:} 12... Bf6 13. Bd4 Rd8 14. Nf3 Nxf3+ 15. Bxf3 e5 16. Be3 e4 17. Be2 Bxc3 18. Rb1 Bf5 {1-0 (45) Roesch,F (1511)-Weber,T (1433) Willingen 2018}) 13. Nb3 {[%emt 0:03:21]} Nc4 {[%emt 0:07:06]} 14. Bxc4 {[%emt 0:02:56]} dxc4 {[%emt 0:00:22]} 15. cxb6 {[%emt 0:00:17]} axb6 {[%emt 0:00:04]} 16. Nd4 {[%emt 0:01:28]} Bb7 {[%emt 0:02:30]} 17. Re1 {[%emt 0:06:54]} (17. a4) (17. a4 $11) 17... Bf6 {[%emt 0:12:43]} 18. Qg4 {[%emt 0:04:07]} Rae8 {[%emt 0:19:14]} (18... e5 $15 19. Nb5 Qc6) 19. Bg5 {[%emt 0:04:08]} (19. a4 $11) 19... Bxd4 $17 {[%emt 0:06:58]} 20. Qxd4 {[%emt 0:00:20]} e5 {[%emt 0:00:34]} 21. Qd2 {[%emt 0:21:28]} Qc6 {[%emt 0:04:32][%csl Gb7][%cal Rc6g2] [#]} 22. f3 {[%emt 0:02:38]} f6 {[%emt 0:04:52]} (22... f5 23. Qe2 Re6) (22... f5 $17 {...Qg6 is the strong threat.} 23. Bh4 f4) 23. Be3 $15 {[%emt 0:01:56]} f5 {[%emt 0:03:47]} 24. Qf2 {[%emt 0:00:40]} Re6 {[%emt 0:00:35]} 25. b5 {[%emt 0:02:30]} Qxb5 {[%emt 0:01:16] And now ...f4 would win.} 26. Rab1 {[%emt 0:01:03]} Qa5 {[%emt 0:00:28]} 27. Bxb6 {[%emt 0:00:44]} Qxc3 {[%emt 0:02:21][%mdl 8192]} (27... Qa8 $11) 28. Bd4 $2 {[%emt 0:00:59]} Qxd4 $14 {[%emt 0:03:32]} 29. Qxd4 {[%emt 0:00:51]} exd4 {[%emt 0:00:05]} 30. Rxe6 {[%emt 0:00:05][%mdl 4096] Endgame KRR-KRB} c3 $2 {[%emt 0:02:53][%mdl 8192] [#]} 31. Rd6 $1 $18 {[%emt 0:19:40]} (31. Rxb7 Rc8) (31. Rxb7 Rc8 $11) 31... Ba6 {[%emt 0:04:06]} 32. Rxd4 {[%emt 0:00:13]} (32. Rxa6 c2 33. Rc1 d3 34. Rxc2 (34. Rd6 Rb8) 34... dxc2) ({Weaker is} 32. Rxa6 c2 33. Rc1 d3 $14) 32... Be2 {[%emt 0:00:37]} (32... Rc8 {might work better.} 33. a4 Rc6) 33. Rc1 {[%emt 0:00:39]} Rc8 {[%emt 0:01:06]} 34. Kf2 {[%emt 0:00:07]} Bb5 {[%emt 0:00:35]} 35. Rb4 {[%emt 0:02:20]} ({Less strong is} 35. Rd5 Be8 36. Rxf5 c2 $18) 35... Ba6 {[%emt 0:00:18]} 36. Rb6 {[%emt 0:00:20] Weighted Error Value: White=0.42/Black=0.57} 1-0

[Event "12th WLC Weekend 2022"]
[Site "Eindhoven"]
[Date "2022.05.14"]
[Round "3.1"]
[White "Baselmans, Luuk"]
[Black "Beerdsen, Thomas"]
[Result "0-1"]
[ECO "B51"]
[WhiteElo "2233"]
[BlackElo "2497"]
[Annotator "TA"]
[PlyCount "42"]
[EventDate "2022.05.13"]
[EventType "swiss"]
[EventCountry "NED"]
[SourceTitle "playchess.com"]
[Source "ChessBase"]
[SourceQuality "1"]
[TimeControl "5400+30"]

{[%evp 9,42,11,11,9,28,23,18,17,18,7,31,17,22,-9,0,0,0,-53,-62,-62,-64,-57,-72,-143,-143,-144,-125,-181,-195,-174,-205,-342,-341,-529,-520]} 1. e4 {[%emt 0:00:03]} c5 {[%emt 0:00:07]} 2. Nf3 {[%emt 0:00:06]} d6 {[%emt 0:00:05]} 3. Bb5+ {[%emt 0:00:12]} Nd7 {[%emt 0:00:08]} 4. Ba4 {[%emt 0:00:07]} Ngf6 {[%emt 0:00:33]} 5. O-O {[%emt 0:00:11]} a6 {[%emt 0:00:38]} 6. c4 {[%emt 0:00:12] Against b5. B51: Sicilian: Moscow Variation (3 Bb5+) without 3...Bd7.} e6 {[%emt 0:00:20]} 7. Nc3 {[%emt 0:00:40] Inhibits b5.} Be7 {[%emt 0:00:09]} 8. d4 {[%emt 0:02:07] The position is equal.} cxd4 {[%emt 0:00:55]} 9. Nxd4 {[%emt 0:00:07]} O-O {[%emt 0:01:22]} 10. Qe2 {[%emt 0:00:51]} Qc7 {[%emt 0:02:34] [#]} 11. h3 $146 {[%emt 0:03:06]} ({Predecessor:} 11. Kh1 Ne5 12. Bb3 Bd7 13. f4 Nc6 14. Nf3 Rfc8 15. e5 Ne8 16. Bc2 g6 17. Bd2 {½-½ (46) Bacrot,E (2642)-Shankland,S (2708) Belgrade 2022}) 11... Nb6 {[%emt 0:06:13][%cal Bd7b6,Bb6c4,Bc4a5][%mdl 32]} 12. Bb3 $1 {[%emt 0:02:28]} Bd7 {[%emt 0:09:26]} 13. Be3 {[%emt 0:03:19]} (13. Nc2 $11) 13... Rfc8 $15 {[%emt 0:03:06][%cal Rb6c4]} 14. Rac1 {[%emt 0:00:51]} Nxc4 {[%emt 0:09:51]} 15. Bg5 {[%emt 0:24:20]} b5 {[%emt 0:04:12]} 16. a4 {[%emt 0:00:54]} ({White should play} 16. Bxc4 bxc4 17. Bh4) 16... h6 $17 {[%emt 0:05:38]} 17. Bh4 {[%emt 0:02:03][%cal Ra4b5]} Qb6 {[%emt 0:03:18]} 18. Rfd1 {[%emt 0:00:54]} (18. Nf3 $17) 18... Na5 $19 {[%emt 0:08:45]} 19. axb5 {[%emt 0:00:42]} axb5 {[%emt 0:01:30][%cal Ba6b5,Bb5b4][%mdl 32] [#] Threatens to win with ...b4.} 20. Bc2 {[%emt 0:04:28]} (20. e5 $142 dxe5 21. Qxe5) 20... b4 {[%emt 0:01:15]} 21. Na4 {[%emt 0:00:12]} (21. Ncb5 $142 Rc4 22. b3) 21... Bxa4 {[%emt 0:00:22] Weighted Error Value: White=0.34/Black=0.00 (flawless)} 0-1

[Event "12th WLC Weekend 2022"]
[Site "Eindhoven"]
[Date "2022.05.14"]
[Round "3.2"]
[White "Van Roon, Sjoerd"]
[Black "Grooten, Herman"]
[Result "1-0"]
[ECO "B80"]
[WhiteElo "2264"]
[BlackElo "2286"]
[Annotator "TA"]
[PlyCount "59"]
[EventDate "2022.05.13"]
[EventType "swiss"]
[EventCountry "NED"]
[SourceTitle "playchess.com"]
[Source "ChessBase"]
[SourceQuality "1"]
[TimeControl "5400+30"]

{[%evp 12,59,18,0,26,0,0,0,0,0,0,2,25,15,69,68,67,20,44,18,77,70,130,126,342,262,258,244,246,256,320,322,647,629,794,803,826,808,992,805,1095,1072,1052,1038,4998,1164,29987,29988,29997,29998]} 1. e4 {[%emt 0:00:01]} c5 {[%emt 0:00:10]} 2. Nf3 {[%emt 0:00:05]} e6 {[%emt 0:00:07]} 3. d4 {[%emt 0:00:08]} cxd4 {[%emt 0:00:06]} 4. Nxd4 {[%emt 0:00:03]} a6 {[%emt 0:00:07]} 5. Bd3 {[%emt 0:00:49]} Nf6 {[%emt 0:00:11]} 6. Nc3 {[%emt 0:01:04]} d6 {[%emt 0:00:44]} 7. Be3 {[%emt 0:02:45] 7.f4 gains popularity.} Nbd7 {[%emt 0:02:57] B80: Sicilian Scheveningen: 6 g3 and 6 Be3, including English Attack.} 8. g4 {[%emt 0:04:19] [#]} h5 $146 {[%emt 0:02:42]} ({Predecessor:} 8... h6 9. h4 Ne5 10. Rg1 g6 11. f4 Nxd3+ 12. cxd3 h5 13. g5 Ng4 14. Qf3 Bg7 15. O-O-O {0-1 (33) Damljanovic,B-Cebalo,M (2465) Skender Vakuf (Knezevo) 1980}) 9. g5 {[%emt 0:04:15]} Ng4 {[%emt 0:00:12] The position is equal.} 10. g6 {[%emt 0:00:23]} Nde5 {[%emt 0:05:08]} 11. gxf7+ {[%emt 0:01:24]} Kxf7 {[%emt 0:00:00]} 12. Nf3 {[%emt 0:12:07]} Nxf3+ {[%emt 0:07:10]} ({Black should try} 12... Nxe3 $11 13. fxe3 Kg8) 13. Qxf3+ $14 {[%emt 0:00:07]} Qf6 {[%emt 0:00:07]} 14. Qe2 {[%emt 0:07:59]} (14. Qg2 $14 {is superior.}) 14... Nxe3 $11 {[%emt 0:03:26]} 15. fxe3 {[%emt 0:02:55]} Qh4+ {[%emt 0:02:05]} (15... Ke7 $11 {remains equal.}) 16. Kd2 $16 {[%emt 0:00:12]} Be7 {[%emt 0:00:55]} (16... Bd7 $14) 17. Raf1+ {[%emt 0:00:55]} Kg8 $2 {[%emt 0:07:58] This move loses the game for Black.} (17... Ke8 $16 {was necessary.}) 18. Rhg1 {[%emt 0:02:13]} ({Weaker is} 18. Qf3 Qf6 $14) 18... e5 {[%emt 0:02:26]} 19. Bc4+ {[%emt 0:05:20]} Kh7 {[%emt 0:00:07]} 20. Rf7 $40 {[%emt 0:00:09][%mdl 128] White has strong attack.} ({Not} 20. Qg2 Bg4 $16) 20... Bg4 {[%emt 0:01:26] [#] White must now prevent ...Raf8.} 21. h3 $1 {[%emt 0:00:09]} Raf8 $2 {[%emt 0:11:13]} (21... Bxe2 $2 {leads to mate.} 22. Rfxg7+ Kh6 23. R1g6#) (21... Qxh3 22. Rxe7 Rhe8) 22. hxg4 $18 {[%emt 0:00:50]} Rxf7 {[%emt 0:00:09]} 23. Bxf7 {[%emt 0:00:07]} Rf8 {[%emt 0:00:09]} 24. Rf1 {[%emt 0:01:17]} hxg4 {[%emt 0:02:01]} 25. Qg2 {[%emt 0:00:34]} Qh6 {[%emt 0:03:42]} 26. Nd5 {[%emt 0:05:25]} Bh4 {[%emt 0:02:13]} 27. Qxg4 {[%emt 0:00:36][%cal Of7g6] [#] Threatens to win with Bg6+!} Bg5 {[%emt 0:02:48]} 28. Rf3 {[%emt 0:01:39][%cal Of7g6] And now Bg6+! would win.} Qh2+ {[%emt 0:01:19]} 29. Kd3 {[%emt 0:00:08]} Bh6 {[%emt 0:00:10]} 30. Bg6+ {[%emt 0:00:08] Weighted Error Value: White=0.16 (very precise) /Black=0.90} 1-0

[Event "12th WLC Weekend 2022"]
[Site "Eindhoven"]
[Date "2022.05.14"]
[Round "3.3"]
[White "Roebers, Eline"]
[Black "Jansen, Bob"]
[Result "1-0"]
[ECO "C18"]
[WhiteElo "2369"]
[BlackElo "2174"]
[Annotator "TA"]
[PlyCount "71"]
[EventDate "2022.05.13"]
[EventType "swiss"]
[EventCountry "NED"]
[SourceTitle "playchess.com"]
[Source "ChessBase"]
[SourceQuality "1"]
[TimeControl "5400+30"]

{[%evp 12,71,18,6,12,12,12,12,12,15,11,6,14,15,17,10,13,11,13,35,22,0,0,0,0,0,0,-64,-56,-60,-25,-39,0,0,0,11,89,87,93,79,164,160,177,176,170,162,164,174,517,495,841,833,823,832,829,779,811,803,753,760,712,712]} 1. e4 {[%emt 0:00:02] Szabo,Kr} e6 {[%emt 0:19:29]} 2. d4 {[%emt 0:00:04]} d5 {[%emt 0:00:02]} 3. Nc3 {[%emt 0:00:04]} Bb4 {[%emt 0:00:04]} 4. e5 {[%emt 0:00:02]} c5 {[%emt 0:00:03]} 5. a3 {[%emt 0:00:03]} Ba5 {[%emt 0:00:03]} 6. b4 {[%emt 0:00:39]} cxd4 {[%emt 0:00:02] [#]} 7. Qg4 $1 {[%emt 0:00:05]} Kf8 {[%emt 0:01:09] is the new trend. C18: French: 3 Nc3 Bb4: Main line: 7 h4 and 7 Qg4.} 8. Nb5 {[%emt 0:00:20][%mdl 1024] White has compensation.} Bb6 {[%emt 0:00:30]} 9. Nf3 {[%emt 0:01:59]} Nc6 {[%emt 0:00:59] The position is equal.} 10. Bb2 $1 {[%emt 0:00:25]} Nge7 {[%emt 0:01:59]} 11. Bd3 {[%emt 0:17:52]} Ng6 {[%emt 0:00:28]} 12. Qg3 {[%emt 0:01:16]} f6 {[%emt 0:05:06][%cal Rg6e5,Bf7f6,Bf6e5,Be5e4][%mdl 32]} 13. Bxg6 {[%emt 0:06:33]} ({Much worse is} 13. exf6 gxf6 14. Nfxd4 e5 $17) 13... hxg6 {[%emt 0:00:22]} 14. Nbxd4 {[%emt 0:01:21]} Nxe5 {[%emt 0:06:21]} 15. Nxe5 {[%emt 0:04:07]} fxe5 {[%emt 0:00:03]} 16. Nf3 {[%emt 0:00:23]} (16. Qxe5 $5 {[%cal Rd4e6]} Qe7 17. O-O-O $11) 16... e4 $1 {[%emt 0:12:36]} 17. Ne5 {[%emt 0:01:38]} Kg8 $1 {[%emt 0:05:37]} 18. Qxg6 {[%emt 0:08:24] Strongly threatening Nf7.} Qe7 {[%emt 0:10:46] Prevents Nf7.} 19. Ng4 {[%emt 0:10:16] [#]} (19. c4 $11) 19... e5 $146 {[%emt 0:21:40] White must now prevent ...Qh4.} ({Predecessor:} 19... Bd7 20. Nf6+ Kf8 21. Nh7+ Kg8 22. Nf6+ Kf8 23. Nh7+ Kg8 24. Nf6+ Kf8 {½-½ (24) Grischuk,A (2766)-Mamedyarov,S (2801) Saint Louis 2018 CBM 186 [Szabo,Kr]}) 20. Nxe5 {[%emt 0:11:23]} Rh6 $1 {[%emt 0:00:13]} 21. Qg3 {[%emt 0:00:41]} Bc7 {[%emt 0:00:08] aiming for ...Rh5.} 22. O-O-O $36 {[%emt 0:02:34][%cal Ba1d1,Bd1d5,Bd5b5][%mdl 2080] White has some pressure.} a5 {[%emt 0:03:05]} 23. Rxd5 {[%emt 0:06:54] Threatens to win with Rhd1.} Be6 {[%emt 0:01:10] [#]} (23... axb4 $11 24. axb4 Qxb4) 24. Rb5 $1 $16 {[%emt 0:02:28]} axb4 {[%emt 0:01:42]} 25. axb4 {[%emt 0:04:06]} ({Don't play} 25. Rxb4 $6 Bd6 $11) 25... Ra2 {[%emt 0:03:07]} (25... b6 $16 {is a better defense.} 26. Qe3 Rf8) 26. Rxb7 {[%emt 0:07:30]} Rxb2 {[%emt 0:04:10]} 27. Rxc7 $1 {[%emt 0:02:45] Chess con chili.} Qxc7 {[%emt 0:00:01][%csl Gb2][%cal Rc7c2]} 28. Kxb2 {[%emt 0:00:05] Hoping for Ng4.} Rh5 {[%emt 0:00:04] [#]} 29. Ng6 {[%emt 0:03:41][%cal Be5g6,Bg6f8,Bf8e6][%mdl 32]} Qc4 {[%emt 0:00:01]} (29... Qb6 30. Qc3 Rb5) 30. Qb8+ $18 {[%emt 0:01:42] White is clearly winning.} Kh7 {[%emt 0:00:27]} (30... Kf7 $142 31. Ne5+ Rxe5 32. Qxe5 Qxb4+ 33. Kc1 Qa3+ 34. Kd2 Qa7) 31. Nf8+ {[%emt 0:01:03]} Kh6 {[%emt 0:00:13]} 32. Qf4+ {[%emt 0:05:26]} Rg5 {[%emt 0:00:01]} 33. Nxe6 {[%emt 0:00:09]} Qxb4+ {[%emt 0:01:58]} 34. Kc1 {[%emt 0:00:01]} Qa3+ {[%emt 0:00:11]} 35. Kd1 {[%emt 0:00:38]} Qa1+ {[%emt 0:00:06]} 36. Qc1 {[%emt 0:00:12] Weighted Error Value: White=0.07 (flawless) /Black=0.23 (precise)} 1-0